[Event "*** Titled Tuesday Blitz"]
[Site "Chess.com"]
[Date "2020.03.03"]
[Round "6"]
[White "GelmanAlexander"]
[Black "Monmoransy"]
[Result "0-1"]
[WhiteElo "2460"]
[BlackElo "2594"]
[TimeControl "180+1"]
[EndTime "10:02:26 PST"]
[Termination "Monmoransy won on time"]

1. e4 {[%clk 0:03:00.9]} 1... c5 {[%clk 0:02:59.3]} 2. b4 {[%clk 0:03:00.1]}
2... b6 {[%clk 0:02:58.4]} 3. a3 {[%clk 0:02:46.3]} 3... e6 {[%clk 0:02:55.5]}
4. Nf3 {[%clk 0:02:37.3]} 4... Bb7 {[%clk 0:02:54.9]} 5. bxc5 {[%clk 0:02:34.7]}
5... bxc5 {[%clk 0:02:50.3]} 6. Nc3 {[%clk 0:02:34]} 6... Nc6 {[%clk 0:02:43.8]}
7. Rb1 {[%clk 0:02:30.4]} 7... Rb8 {[%clk 0:02:43.6]} 8. Bc4 {[%clk 0:02:27]}
8... Nge7 {[%clk 0:02:42.6]} 9. O-O {[%clk 0:02:23]} 9... Ng6 {[%clk 0:02:42.2]}
10. d4 {[%clk 0:02:09.8]} 10... cxd4 {[%clk 0:02:38.3]} 11. Nxd4 {[%clk
0:02:09.8]} 11... Bc5 {[%clk 0:02:19.1]} 12. Ndb5 {[%clk 0:00:44.8]} 12... O-O
{[%clk 0:02:12.2]} 13. Qh5 {[%clk 0:00:43]} 13... d6 {[%clk 0:02:04.7]} 14. Rd1
{[%clk 0:00:42.1]} 14... Qe7 {[%clk 0:02:03.9]} 15. Na4 {[%clk 0:00:29.5]} 15...
Rfd8 {[%clk 0:01:48.1]} 16. Nxc5 {[%clk 0:00:26.5]} 16... dxc5 {[%clk
0:01:47.5]} 17. Bg5 {[%clk 0:00:27.1]} 17... f6 {[%clk 0:01:45]} 18. Be3 {[%clk
0:00:27.2]} 18... a6 {[%clk 0:01:40.6]} 19. Bxc5 {[%clk 0:00:25.5]} 19... Rxd1+
{[%clk 0:01:00.7]} 20. Rxd1 {[%clk 0:00:26.4]} 20... Nf4 {[%clk 0:00:49.1]} 21.
Bxe7 {[%clk 0:00:17.1]} 21... Nxh5 {[%clk 0:00:48.6]} 22. Bxe6+ {[%clk
0:00:16.8]} 22... Kh8 {[%clk 0:00:49.1]} 23. Bd6 {[%clk 0:00:15.6]} 23... Rd8
{[%clk 0:00:44.3]} 24. Nc7 {[%clk 0:00:10.3]} 24... Nf4 {[%clk 0:00:40.4]} 25.
Bg4 {[%clk 0:00:06.1]} 25... h5 {[%clk 0:00:36.6]} 26. Bxf4 {[%clk 0:00:05.3]}
26... Nd4 {[%clk 0:00:31.6]} 27. Bxh5 {[%clk 0:00:03.5]} 27... g6 {[%clk
0:00:29.7]} 28. Bg4 {[%clk 0:00:01.1]} 28... f5 {[%clk 0:00:29.5]} 0-1

[Event "*** Titled Tuesday Blitz"]
[Site "Chess.com"]
[Date "2020.03.03"]
[Round "6"]
[White "Mikedannnn"]
[Black "sganerdene"]
[Result "0-1"]
[WhiteElo "2528"]
[BlackElo "2687"]
[TimeControl "180+1"]
[EndTime "10:02:32 PST"]
[Termination "sganerdene won by resignation"]

1. e4 {[%clk 0:02:56.7]} 1... c5 {[%clk 0:02:59.2]} 2. Nf3 {[%clk 0:02:56]} 2...
e6 {[%clk 0:02:59]} 3. c4 {[%clk 0:02:54.4]} 3... Nc6 {[%clk 0:02:58.6]} 4. Nc3
{[%clk 0:02:55]} 4... Nf6 {[%clk 0:02:57.1]} 5. Be2 {[%clk 0:02:51.7]} 5... d6
{[%clk 0:02:56.9]} 6. d4 {[%clk 0:02:51]} 6... cxd4 {[%clk 0:02:56.7]} 7. Nxd4
{[%clk 0:02:51.9]} 7... Be7 {[%clk 0:02:56.8]} 8. O-O {[%clk 0:02:51.4]} 8...
O-O {[%clk 0:02:56.9]} 9. Be3 {[%clk 0:02:51.5]} 9... a6 {[%clk 0:02:56.4]} 10.
a4 {[%clk 0:02:44]} 10... Bd7 {[%clk 0:02:56.6]} 11. Rc1 {[%clk 0:02:39.5]}
11... Nxd4 {[%clk 0:02:56.8]} 12. Qxd4 {[%clk 0:02:36.8]} 12... Bc6 {[%clk
0:02:56.7]} 13. b4 {[%clk 0:02:23.8]} 13... Rc8 {[%clk 0:02:46.4]} 14. f3 {[%clk
0:02:05.7]} 14... a5 {[%clk 0:02:37.2]} 15. b5 {[%clk 0:01:50.3]} 15... Be8
{[%clk 0:02:36.8]} 16. Qb6 {[%clk 0:01:43.4]} 16... Nd7 {[%clk 0:02:28.4]} 17.
Qxd8 {[%clk 0:01:43.3]} 17... Bxd8 {[%clk 0:02:27]} 18. Rfd1 {[%clk 0:01:43.2]}
18... Be7 {[%clk 0:02:25.1]} 19. Nb1 {[%clk 0:01:33.7]} 19... Nc5 {[%clk
0:02:23.4]} 20. Bxc5 {[%clk 0:01:21.3]} 20... Rxc5 {[%clk 0:02:17.9]} 21. Nd2
{[%clk 0:01:21.2]} 21... b6 {[%clk 0:02:14]} 22. Nb3 {[%clk 0:01:21.2]} 22...
Rc7 {[%clk 0:02:14.4]} 23. c5 {[%clk 0:01:18.4]} 23... dxc5 {[%clk 0:02:13.5]}
24. Bc4 {[%clk 0:01:07.6]} 24... Bd7 {[%clk 0:02:11.2]} 25. Rd3 {[%clk
0:00:57.6]} 25... Bc8 {[%clk 0:02:10.9]} 26. Rcd1 {[%clk 0:00:56]} 26... g6
{[%clk 0:02:11.4]} 27. Kf2 {[%clk 0:00:49.8]} 27... Kg7 {[%clk 0:02:09.3]} 28.
Ke3 {[%clk 0:00:46]} 28... Bb7 {[%clk 0:02:08.8]} 29. Rd7 {[%clk 0:00:44.4]}
29... Rfc8 {[%clk 0:01:57.8]} 30. g3 {[%clk 0:00:43.3]} 30... Bf6 {[%clk
0:01:47.3]} 31. Ke2 {[%clk 0:00:33.1]} 31... Be5 {[%clk 0:01:30.7]} 32. R1d3
{[%clk 0:00:30.1]} 32... g5 {[%clk 0:01:28.8]} 33. Bxe6 {[%clk 0:00:18.6]} 33...
c4 {[%clk 0:01:27.5]} 34. Bxc4 {[%clk 0:00:18.5]} 34... Bxe4 {[%clk 0:01:21.9]}
35. fxe4 {[%clk 0:00:10.6]} 35... Rxc4 {[%clk 0:01:21.7]} 36. Nd2 {[%clk
0:00:09.1]} 36... Rxa4 {[%clk 0:01:20.6]} 37. Rb7 {[%clk 0:00:09.2]} 37... Bd4
{[%clk 0:01:18.4]} 38. e5 {[%clk 0:00:07.5]} 38... g4 {[%clk 0:01:05.7]} 39. e6
{[%clk 0:00:07.2]} 39... Re8 {[%clk 0:01:01.9]} 40. Rxf7+ {[%clk 0:00:06.5]}
40... Kg6 {[%clk 0:01:02.4]} 41. Rf4 {[%clk 0:00:06.5]} 41... Rxe6+ {[%clk
0:01:01.4]} 42. Kf1 {[%clk 0:00:06.7]} 42... Ra1+ {[%clk 0:01:00.5]} 0-1

[Event "*** Titled Tuesday Blitz"]
[Site "Chess.com"]
[Date "2020.03.03"]
[Round "6"]
[White "MikaelyanArman"]
[Black "guillembaches"]
[Result "1-0"]
[WhiteElo "2642"]
[BlackElo "2399"]
[TimeControl "180+1"]
[EndTime "10:02:42 PST"]
[Termination "MikaelyanArman won on time"]

1. e4 {[%clk 0:03:00.9]} 1... c5 {[%clk 0:02:59.8]} 2. Nc3 {[%clk 0:03:01]} 2...
a6 {[%clk 0:02:58.8]} 3. Nge2 {[%clk 0:02:59.5]} 3... d6 {[%clk 0:02:58.7]} 4.
g3 {[%clk 0:02:59.6]} 4... b5 {[%clk 0:02:57.8]} 5. d4 {[%clk 0:02:56.7]} 5...
cxd4 {[%clk 0:02:50.5]} 6. Nxd4 {[%clk 0:02:57.6]} 6... Bb7 {[%clk 0:02:48.8]}
7. Bg2 {[%clk 0:02:57.7]} 7... e6 {[%clk 0:02:38.6]} 8. O-O {[%clk 0:02:56.8]}
8... Nd7 {[%clk 0:02:34.7]} 9. Re1 {[%clk 0:02:55.3]} 9... Ngf6 {[%clk 0:02:29]}
10. a4 {[%clk 0:02:45.8]} 10... bxa4 {[%clk 0:02:26]} 11. Rxa4 {[%clk
0:02:42.1]} 11... Qc7 {[%clk 0:02:13.4]} 12. Nd5 {[%clk 0:02:33.3]} 12... exd5
{[%clk 0:02:11.2]} 13. exd5+ {[%clk 0:02:33.3]} 13... Ne5 {[%clk 0:02:11.1]} 14.
f4 {[%clk 0:02:33.4]} 14... Be7 {[%clk 0:02:01.8]} 15. fxe5 {[%clk 0:02:28.8]}
15... dxe5 {[%clk 0:02:01.8]} 16. Nf5 {[%clk 0:02:19.5]} 16... Bc5+ {[%clk
0:01:54.3]} 17. Kh1 {[%clk 0:02:18.7]} 17... O-O {[%clk 0:01:54.3]} 18. Bg5
{[%clk 0:02:14.6]} 18... Nd7 {[%clk 0:01:19.1]} 19. Rg4 {[%clk 0:01:55.1]} 19...
g6 {[%clk 0:01:15.2]} 20. Be7 {[%clk 0:01:42.7]} 20... Rfe8 {[%clk 0:01:06.1]}
21. Bxc5 {[%clk 0:01:37.6]} 21... Nxc5 {[%clk 0:01:01.2]} 22. Qf3 {[%clk
0:01:33.9]} 22... Rad8 {[%clk 0:00:56.3]} 23. c4 {[%clk 0:01:19.2]} 23... Ne6
{[%clk 0:00:49.9]} 24. Nh6+ {[%clk 0:01:13.1]} 24... Kg7 {[%clk 0:00:48]} 25.
Qxf7+ {[%clk 0:01:04.8]} 25... Kxh6 {[%clk 0:00:15.5]} 26. Rh4+ {[%clk
0:00:42.5]} 26... Kg5 {[%clk 0:00:15.3]} 27. Qf2 {[%clk 0:00:36.6]} 27... Nd4
{[%clk 0:00:08.2]} 28. Rf1 {[%clk 0:00:28.6]} 1-0

[Event "*** Titled Tuesday Blitz"]
[Site "Chess.com"]
[Date "2020.03.03"]
[Round "6"]
[White "vaishali2001"]
[Black "GukeshDommaraju"]
[Result "0-1"]
[WhiteElo "2472"]
[BlackElo "2649"]
[TimeControl "180+1"]
[EndTime "10:02:43 PST"]
[Termination "GukeshDommaraju won by resignation"]

1. e4 {[%clk 0:03:00.9]} 1... c5 {[%clk 0:03:00]} 2. Nc3 {[%clk 0:02:59.4]} 2...
Nc6 {[%clk 0:02:59.9]} 3. Bb5 {[%clk 0:02:59.2]} 3... Nd4 {[%clk 0:02:59.3]} 4.
Nf3 {[%clk 0:02:59.8]} 4... a6 {[%clk 0:02:58.8]} 5. Bd3 {[%clk 0:02:55.1]} 5...
Nc6 {[%clk 0:02:58.2]} 6. b3 {[%clk 0:02:32]} 6... g6 {[%clk 0:02:57]} 7. Bb2
{[%clk 0:02:32]} 7... Bg7 {[%clk 0:02:57.2]} 8. O-O {[%clk 0:02:31]} 8... d6
{[%clk 0:02:51.8]} 9. a4 {[%clk 0:02:29.5]} 9... e6 {[%clk 0:02:47.6]} 10. Qc1
{[%clk 0:02:19.4]} 10... Nge7 {[%clk 0:02:37.6]} 11. Ne2 {[%clk 0:02:19.2]}
11... e5 {[%clk 0:02:36.8]} 12. Bc4 {[%clk 0:02:12.2]} 12... Bg4 {[%clk
0:02:29.2]} 13. Ng5 {[%clk 0:02:05.6]} 13... O-O {[%clk 0:02:28]} 14. f4 {[%clk
0:02:00.1]} 14... d5 {[%clk 0:02:16.5]} 15. exd5 {[%clk 0:01:51]} 15... Nxd5
{[%clk 0:02:16.5]} 16. Ng3 {[%clk 0:00:56.6]} 16... Nxf4 {[%clk 0:02:06.2]} 17.
N5e4 {[%clk 0:00:27.1]} 17... Na5 {[%clk 0:01:52.5]} 18. h3 {[%clk 0:00:19.9]}
18... Nxc4 {[%clk 0:01:51.1]} 19. bxc4 {[%clk 0:00:19.2]} 19... Ne2+ {[%clk
0:01:46.7]} 20. Nxe2 {[%clk 0:00:18]} 20... Bxe2 {[%clk 0:01:47.6]} 21. Rf2
{[%clk 0:00:17.4]} 21... Bxc4 {[%clk 0:01:47]} 22. d3 {[%clk 0:00:15.8]} 22...
Bd5 {[%clk 0:01:46.6]} 23. Nxc5 {[%clk 0:00:14.7]} 23... Rc8 {[%clk 0:01:45.9]}
24. Ne4 {[%clk 0:00:13.5]} 24... f5 {[%clk 0:01:44.5]} 25. Nc3 {[%clk 0:00:06]}
25... Bc6 {[%clk 0:01:44.4]} 26. Qe3 {[%clk 0:00:04.4]} 26... Rf7 {[%clk
0:01:41.8]} 27. Re1 {[%clk 0:00:04.5]} 27... Qa5 {[%clk 0:01:39.1]} 28. g4
{[%clk 0:00:02.8]} 28... f4 {[%clk 0:01:38]} 29. Qd2 {[%clk 0:00:03.2]} 29... e4
{[%clk 0:01:35]} 30. Nxe4 {[%clk 0:00:03.1]} 30... Qxd2 {[%clk 0:01:34.3]} 31.
Rxd2 {[%clk 0:00:03.8]} 31... Bxb2 {[%clk 0:01:34.2]} 32. Nd6 {[%clk 0:00:04.4]}
32... Bd4+ {[%clk 0:01:33.9]} 33. Kf1 {[%clk 0:00:03.7]} 33... Rd8 {[%clk
0:01:33.9]} 34. Nxf7 {[%clk 0:00:03.7]} 34... Kxf7 {[%clk 0:01:34.8]} 35. Rde2
{[%clk 0:00:03.9]} 35... Re8 {[%clk 0:01:31.7]} 36. Rxe8 {[%clk 0:00:03.7]}
36... Bxe8 {[%clk 0:01:32.6]} 37. Rb1 {[%clk 0:00:04.6]} 37... Bc6 {[%clk
0:01:31.4]} 38. Ke2 {[%clk 0:00:05.2]} 38... f3+ {[%clk 0:01:31.3]} 39. Kd2
{[%clk 0:00:04.9]} 39... f2 {[%clk 0:01:31.3]} 40. c3 {[%clk 0:00:05.4]} 40...
Bg2 {[%clk 0:01:30.9]} 41. cxd4 {[%clk 0:00:02.3]} 41... f1=Q {[%clk 0:01:31]}
42. Rxf1+ {[%clk 0:00:02.7]} 42... Bxf1 {[%clk 0:01:31.6]} 43. Kc3 {[%clk
0:00:03.2]} 43... Ke6 {[%clk 0:01:31.6]} 44. Kc4 {[%clk 0:00:04.1]} 44... Kd6
{[%clk 0:01:31.2]} 45. h4 {[%clk 0:00:04.2]} 45... Be2 {[%clk 0:01:30.8]} 46. g5
{[%clk 0:00:04.4]} 46... Bf1 {[%clk 0:01:30.9]} 47. a5 {[%clk 0:00:03.2]} 47...
Be2 {[%clk 0:01:30.9]} 48. d5 {[%clk 0:00:03]} 48... Bxd3+ {[%clk 0:01:26.6]}
49. Kd4 {[%clk 0:00:03.9]} 49... Bf5 {[%clk 0:01:25.7]} 0-1

[Event "*** Titled Tuesday Blitz"]
[Site "Chess.com"]
[Date "2020.03.03"]
[Round "6"]
[White "ZenBull"]
[Black "ArlanCabe"]
[Result "1-0"]
[WhiteElo "2176"]
[BlackElo "2339"]
[TimeControl "180+1"]
[EndTime "10:02:53 PST"]
[Termination "ZenBull won on time"]

1. Nf3 {[%clk 0:03:00.9]} 1... c5 {[%clk 0:02:58.5]} 2. c4 {[%clk 0:03:00]} 2...
Nc6 {[%clk 0:02:53.6]} 3. Nc3 {[%clk 0:02:51.7]} 3... g6 {[%clk 0:02:52.9]} 4.
d4 {[%clk 0:02:50.5]} 4... cxd4 {[%clk 0:02:52.3]} 5. Nxd4 {[%clk 0:02:51.4]}
5... Bg7 {[%clk 0:02:52.7]} 6. Nc2 {[%clk 0:02:42]} 6... d6 {[%clk 0:02:40.1]}
7. e4 {[%clk 0:02:35.8]} 7... Be6 {[%clk 0:02:35.7]} 8. Be2 {[%clk 0:02:24.7]}
8... Bxc3+ {[%clk 0:02:03.4]} 9. bxc3 {[%clk 0:02:24.4]} 9... Na5 {[%clk
0:01:54.4]} 10. Ne3 {[%clk 0:02:06.9]} 10... Nf6 {[%clk 0:01:52.1]} 11. Qa4+
{[%clk 0:01:51.2]} 11... Bd7 {[%clk 0:01:50]} 12. Qc2 {[%clk 0:01:51.2]} 12...
O-O {[%clk 0:01:44.6]} 13. Ba3 {[%clk 0:01:46.4]} 13... Rc8 {[%clk 0:01:42.8]}
14. Rd1 {[%clk 0:01:42.7]} 14... b6 {[%clk 0:01:35.2]} 15. O-O {[%clk
0:01:40.6]} 15... Qc7 {[%clk 0:01:28.4]} 16. e5 {[%clk 0:01:33.2]} 16... dxe5
{[%clk 0:01:03.8]} 17. Bxe7 {[%clk 0:01:31.5]} 17... Ba4 {[%clk 0:01:00.9]} 18.
Qxa4 {[%clk 0:01:25]} 18... Qxe7 {[%clk 0:01:00.7]} 19. Rd2 {[%clk 0:00:52.4]}
19... Ne4 {[%clk 0:00:57.4]} 20. Rc2 {[%clk 0:00:44.2]} 20... Qg5 {[%clk
0:00:49]} 21. Bf3 {[%clk 0:00:40.4]} 21... Nc5 {[%clk 0:00:38]} 22. Qa3 {[%clk
0:00:37.2]} 22... e4 {[%clk 0:00:36.4]} 23. Be2 {[%clk 0:00:36.8]} 23... f5
{[%clk 0:00:35.2]} 24. Nd5 {[%clk 0:00:33.7]} 24... f4 {[%clk 0:00:32]} 25. Qc1
{[%clk 0:00:32.9]} 25... Kg7 {[%clk 0:00:29.9]} 26. Re1 {[%clk 0:00:31.3]} 26...
Qh4 {[%clk 0:00:18.5]} 27. Bf1 {[%clk 0:00:30.8]} 27... Rce8 {[%clk 0:00:17.2]}
28. Qd1 {[%clk 0:00:27.5]} 28... Nc6 {[%clk 0:00:12.6]} 29. h3 {[%clk
0:00:20.5]} 29... Ne5 {[%clk 0:00:11.7]} 30. Qd4 {[%clk 0:00:19]} 30... Kh6
{[%clk 0:00:09.3]} 31. Rb2 {[%clk 0:00:13.4]} 31... Qg5 {[%clk 0:00:08.8]} 32.
Kh1 {[%clk 0:00:13.2]} 32... f3 {[%clk 0:00:01.7]} 33. g4 {[%clk 0:00:12.5]} 1-0

[Event "*** Titled Tuesday Blitz"]
[Site "Chess.com"]
[Date "2020.03.03"]
[Round "6"]
[White "MathiasWomacka"]
[Black "AndreyNeves"]
[Result "0-1"]
[WhiteElo "2376"]
[BlackElo "2195"]
[TimeControl "180+1"]
[EndTime "10:02:58 PST"]
[Termination "AndreyNeves won on time"]

1. e4 {[%clk 0:03:00.9]} 1... c5 {[%clk 0:02:59.1]} 2. Nf3 {[%clk 0:03:00.3]}
2... Nc6 {[%clk 0:02:57.7]} 3. d4 {[%clk 0:03:00.2]} 3... cxd4 {[%clk
0:02:55.1]} 4. Nxd4 {[%clk 0:03:01.1]} 4... Nf6 {[%clk 0:02:54.9]} 5. Nc3 {[%clk
0:03:01.1]} 5... e5 {[%clk 0:02:54.2]} 6. Ndb5 {[%clk 0:03:01.1]} 6... d6 {[%clk
0:02:54]} 7. Bg5 {[%clk 0:03:01]} 7... a6 {[%clk 0:02:53.9]} 8. Na3 {[%clk
0:03:01.5]} 8... b5 {[%clk 0:02:52.9]} 9. Nd5 {[%clk 0:03:01.5]} 9... Be7 {[%clk
0:02:52.4]} 10. Bxf6 {[%clk 0:03:01.6]} 10... Bxf6 {[%clk 0:02:52.2]} 11. c3
{[%clk 0:03:02.1]} 11... Bg5 {[%clk 0:02:50.9]} 12. Nc2 {[%clk 0:03:01.1]} 12...
Ne7 {[%clk 0:02:46.7]} 13. h4 {[%clk 0:02:54.1]} 13... Bh6 {[%clk 0:02:38.4]}
14. Ncb4 {[%clk 0:02:53.8]} 14... Be6 {[%clk 0:02:18]} 15. a4 {[%clk 0:02:31.8]}
15... Nxd5 {[%clk 0:02:01.8]} 16. Nxd5 {[%clk 0:02:29.9]} 16... Bxd5 {[%clk
0:01:54.4]} 17. Qxd5 {[%clk 0:02:27.9]} 17... O-O {[%clk 0:01:51.1]} 18. Be2
{[%clk 0:01:51.4]} 18... Rc8 {[%clk 0:01:38.9]} 19. axb5 {[%clk 0:01:49.1]}
19... Rc5 {[%clk 0:01:32.9]} 20. Qb3 {[%clk 0:01:42.5]} 20... axb5 {[%clk
0:01:31]} 21. h5 {[%clk 0:01:04.5]} 21... d5 {[%clk 0:01:23.1]} 22. exd5 {[%clk
0:01:01.4]} 22... Rxd5 {[%clk 0:01:19.8]} 23. O-O {[%clk 0:00:58.9]} 23... Rd2
{[%clk 0:01:14.8]} 24. Bxb5 {[%clk 0:00:56.4]} 24... Qh4 {[%clk 0:01:10.1]} 25.
g3 {[%clk 0:00:31.3]} 25... Qxh5 {[%clk 0:00:59.5]} 26. Ra7 {[%clk 0:00:23.1]}
26... Be3 {[%clk 0:00:52.4]} 27. Rd7 {[%clk 0:00:11.3]} 27... Rxd7 {[%clk
0:00:27.1]} 28. Bxd7 {[%clk 0:00:12.2]} 28... Bg5 {[%clk 0:00:21.5]} 29. Bc6
{[%clk 0:00:07.4]} 29... Bf6 {[%clk 0:00:21.1]} 30. Bd5 {[%clk 0:00:06.9]} 30...
Qg6 {[%clk 0:00:20.2]} 31. Ra1 {[%clk 0:00:06.2]} 31... h5 {[%clk 0:00:19.7]}
0-1

[Event "*** Titled Tuesday Blitz"]
[Site "Chess.com"]
[Date "2020.03.03"]
[Round "6"]
[White "AniJak"]
[Black "M1711"]
[Result "0-1"]
[WhiteElo "2171"]
[BlackElo "2543"]
[TimeControl "180+1"]
[EndTime "10:03:01 PST"]
[Termination "M1711 won by resignation"]

1. e4 {[%clk 0:03:00.9]} 1... e6 {[%clk 0:02:58.4]} 2. d4 {[%clk 0:03:00]} 2...
a6 {[%clk 0:02:57.1]} 3. Bd3 {[%clk 0:02:57.6]} 3... h6 {[%clk 0:02:56.9]} 4.
Ne2 {[%clk 0:02:53.4]} 4... d6 {[%clk 0:02:47.6]} 5. c4 {[%clk 0:02:48.9]} 5...
Bd7 {[%clk 0:02:30.9]} 6. Nbc3 {[%clk 0:02:47.8]} 6... Nc6 {[%clk 0:02:29.7]} 7.
Be3 {[%clk 0:02:46.9]} 7... e5 {[%clk 0:02:29.3]} 8. d5 {[%clk 0:02:45.6]} 8...
Nce7 {[%clk 0:02:29.3]} 9. c5 {[%clk 0:02:45.4]} 9... Ng6 {[%clk 0:02:28.8]} 10.
Qb3 {[%clk 0:02:39]} 10... Rb8 {[%clk 0:02:17.2]} 11. cxd6 {[%clk 0:02:38.6]}
11... Bxd6 {[%clk 0:02:10.7]} 12. O-O {[%clk 0:02:33.7]} 12... N8e7 {[%clk
0:02:00.7]} 13. f4 {[%clk 0:02:30.5]} 13... exf4 {[%clk 0:01:56.6]} 14. Nxf4
{[%clk 0:02:30.3]} 14... O-O {[%clk 0:01:53]} 15. Nh5 {[%clk 0:02:20.6]} 15...
c6 {[%clk 0:01:40.4]} 16. Ba7 {[%clk 0:02:09.3]} 16... cxd5 {[%clk 0:01:36.9]}
17. Bxb8 {[%clk 0:02:06.3]} 17... Qxb8 {[%clk 0:01:36.4]} 18. g3 {[%clk
0:01:59.2]} 18... Qa7+ {[%clk 0:00:57]} 19. Kg2 {[%clk 0:01:55.7]} 19... dxe4
{[%clk 0:00:48.4]} 20. Nxe4 {[%clk 0:01:54.8]} 20... Bc6 {[%clk 0:00:47.6]} 21.
Rac1 {[%clk 0:01:48.3]} 21... Be5 {[%clk 0:00:46.1]} 22. Nf4 {[%clk 0:01:18.4]}
22... Bxf4 {[%clk 0:00:42]} 23. gxf4 {[%clk 0:01:16.1]} 23... Bd5 {[%clk
0:00:42.4]} 24. Qc3 {[%clk 0:00:59.2]} 24... f5 {[%clk 0:00:41.1]} 25. Kg3
{[%clk 0:00:36.7]} 25... fxe4 {[%clk 0:00:38.2]} 26. Be2 {[%clk 0:00:36.3]}
26... Nf5+ {[%clk 0:00:37.8]} 27. Kh3 {[%clk 0:00:34.8]} 27... Qb8 {[%clk
0:00:28.1]} 28. Qd2 {[%clk 0:00:22.9]} 28... Qd8 {[%clk 0:00:25.4]} 29. Rcd1
{[%clk 0:00:14.7]} 29... Qh4+ {[%clk 0:00:20.3]} 30. Kg2 {[%clk 0:00:14.9]}
30... Bc6 {[%clk 0:00:20.8]} 31. Kg1 {[%clk 0:00:13.9]} 31... e3 {[%clk
0:00:19.6]} 32. Qc3 {[%clk 0:00:12.4]} 32... Kh8 {[%clk 0:00:14]} 33. Bf3 {[%clk
0:00:12.1]} 33... Nxf4 {[%clk 0:00:12.2]} 34. Bxc6 {[%clk 0:00:10.3]} 34... Ne2+
{[%clk 0:00:11.3]} 0-1

[Event "*** Titled Tuesday Blitz"]
[Site "Chess.com"]
[Date "2020.03.03"]
[Round "6"]
[White "David_Paravyan"]
[Black "Volodar_Murzin"]
[Result "1-0"]
[WhiteElo "2823"]
[BlackElo "2683"]
[TimeControl "180+1"]
[EndTime "10:03:03 PST"]
[Termination "David_Paravyan won by resignation"]

1. d4 {[%clk 0:03:00.2]} 1... d5 {[%clk 0:02:58.1]} 2. c4 {[%clk 0:03:00.6]}
2... c6 {[%clk 0:02:56.5]} 3. Nf3 {[%clk 0:02:59.2]} 3... Nf6 {[%clk 0:02:56.3]}
4. g3 {[%clk 0:02:58.4]} 4... Bg4 {[%clk 0:02:42.1]} 5. Ne5 {[%clk 0:02:57.2]}
5... Bf5 {[%clk 0:02:41.2]} 6. Nc3 {[%clk 0:02:53.6]} 6... g6 {[%clk 0:02:21.7]}
7. Qb3 {[%clk 0:02:49.4]} 7... Qb6 {[%clk 0:02:19.7]} 8. cxd5 {[%clk 0:02:43.5]}
8... Qxb3 {[%clk 0:02:04.3]} 9. axb3 {[%clk 0:02:43.8]} 9... Nxd5 {[%clk
0:02:03.4]} 10. e4 {[%clk 0:01:56.9]} 10... Nxc3 {[%clk 0:02:02.1]} 11. exf5
{[%clk 0:01:57.5]} 11... Nd5 {[%clk 0:02:02]} 12. Bh3 {[%clk 0:01:57.9]} 12...
gxf5 {[%clk 0:01:55.1]} 13. Bxf5 {[%clk 0:01:57.1]} 13... e6 {[%clk 0:01:55.4]}
14. Bg4 {[%clk 0:01:56.3]} 14... Bb4+ {[%clk 0:01:56]} 15. Ke2 {[%clk
0:01:52.7]} 15... Nd7 {[%clk 0:01:56]} 16. Bh5 {[%clk 0:01:47.4]} 16... Nxe5
{[%clk 0:01:43.5]} 17. dxe5 {[%clk 0:01:48.3]} 17... a5 {[%clk 0:01:35.6]} 18.
Bh6 {[%clk 0:01:44.6]} 18... Bf8 {[%clk 0:01:34]} 19. Bd2 {[%clk 0:01:43.1]}
19... Bb4 {[%clk 0:01:32]} 20. Bh6 {[%clk 0:01:43.3]} 20... Bf8 {[%clk 0:01:30]}
21. Bg5 {[%clk 0:01:41.5]} 21... Be7 {[%clk 0:01:29.7]} 22. h4 {[%clk
0:01:39.6]} 22... Rg8 {[%clk 0:01:20]} 23. f4 {[%clk 0:01:21.9]} 23... Bf8
{[%clk 0:01:13.2]} 24. f5 {[%clk 0:01:10.3]} 24... exf5 {[%clk 0:00:32]} 25. e6
{[%clk 0:01:09.6]} 25... Rg6 {[%clk 0:00:32.4]} 26. Bxg6 {[%clk 0:01:05.3]}
26... fxg6 {[%clk 0:00:22.9]} 27. h5 {[%clk 0:01:04.4]} 27... Bg7 {[%clk
0:00:21.7]} 28. hxg6 {[%clk 0:01:01.6]} 28... hxg6 {[%clk 0:00:21.9]} 29. Rh7
{[%clk 0:01:01.6]} 29... Kf8 {[%clk 0:00:22]} 30. e7+ {[%clk 0:00:39.4]} 30...
Kg8 {[%clk 0:00:17.7]} 31. Rxa5 {[%clk 0:00:37.6]} 31... Re8 {[%clk 0:00:18.3]}
32. Rh1 {[%clk 0:00:32.1]} 32... Nxe7 {[%clk 0:00:16]} 33. Kf3 {[%clk
0:00:32.5]} 33... Nd5 {[%clk 0:00:15]} 34. Ra7 {[%clk 0:00:33]} 34... Bxb2
{[%clk 0:00:08.4]} 35. Rxb7 {[%clk 0:00:31.8]} 35... Bd4 {[%clk 0:00:08.7]} 36.
Rh6 {[%clk 0:00:30.2]} 36... Re1 {[%clk 0:00:04.5]} 37. Rxg6+ {[%clk 0:00:29.1]}
37... Kf8 {[%clk 0:00:04.7]} 38. Bh6+ {[%clk 0:00:29.1]} 38... Ke8 {[%clk
0:00:05]} 1-0